fUSD/lending_fUSD_20260127
["ID","MTS","AMOUNT","RATE_DAILY","PERIOD"]
[403754777,1769522463027,-526.01,0.00043378,120]
[403754778,1769522463107,-526.01,0.00043378,120]
[403754779,1769522463191,-526.01,0.00043378,120]
[403754780,1769522463274,-526.01,0.00043378,120]
[403754781,1769522463359,-526.01,0.00043378,120]
[403754782,1769522463447,-526.01,0.00043378,120]
[403754783,1769522463533,-526.01,0.00043378,120]
[403754784,1769522463619,-526.01,0.00043378,120]
[403754785,1769522463703,-526.01,0.00043378,120]
[403754786,1769522463788,-526.01,0.00043378,120]
[403754787,1769522463878,-526.01,0.00043378,120]
[403754788,1769522463963,-526.01,0.00043378,120]
[403754789,1769522464051,-526.01,0.00043378,120]
[403754790,1769522464138,-526.01,0.00043378,120]
[403754791,1769522464235,-526.01,0.00043378,120]
[403754792,1769522464324,-526.01,0.00043378,120]
[403754793,1769522464414,-526.01,0.00043378,120]
[403754794,1769522464503,-526.01,0.00043378,120]
[403754795,1769522464590,-526.01,0.00043378,120]
[403754796,1769522464677,-526.01,0.00043378,120]
[403754797,1769522464766,-526.01,0.00043378,120]
[403754798,1769522464856,-526.01,0.00043378,120]
[403754799,1769522464948,-526.1527907,0.00043378,120]
[403754800,1769522465040,-456.05772517,0.00043378,120]
[403754801,1769522465144,-1160.99,0.00043378,120]
[403754802,1769522465235,-169.3651237,0.00043378,120]
[403754803,1769522465325,-504.72561925,0.00043378,120]
[403754804,1769522465415,-569.81380803,0.00043378,120]
[403754805,1769522465503,-418.64758795,0.00043378,30]
[403754806,1769522465590,-500.0,0.00043378,120]
[403754807,1769522465680,-501.2691408,0.00043378,120]
[403754808,1769522465766,-500.0,0.00043378,120]
[403754811,1769522466213,-516.28988489,0.00043378,120]
[403754812,1769522466341,-508.23027039,0.00043378,120]
[403754813,1769522466426,-502.38847636,0.00043378,120]
[403754814,1769522466524,-329.84089306,0.00043378,120]
[403754815,1769522466615,-500.0,0.00043378,120]
[403754816,1769522466704,-500.0,0.00043378,120]
[403754817,1769522466792,-500.0,0.00043378,120]
[403754818,1769522466883,-554.20562166,0.00043378,120]
[403754819,1769522466971,-500.0,0.00043378,120]
[403754820,1769522467057,-500.0,0.00043378,120]
[403754821,1769522467144,-500.0,0.00043378,120]
[403754822,1769522467231,-500.0,0.00043378,120]
[403754823,1769522467318,-452.80497855,0.00043378,120]
[403754824,1769522467404,-500.0,0.00043378,120]
[403754825,1769522467497,-500.0,0.00043378,120]
[403754826,1769522467583,-500.0,0.00043378,120]
[403754827,1769522467672,-500.0,0.00043378,120]
[403754828,1769522467760,-500.0,0.00043378,120]
[403754829,1769522467848,-500.0,0.00043378,120]
[403754830,1769522467940,-500.0,0.00043378,120]
[403754831,1769522468032,-500.0,0.00043378,120]
[403754832,1769522468122,-203.82073528,0.00043378,120]
[403754833,1769522468213,-296.95194158,0.00043378,30]
[403754834,1769522468301,-15584.32509463,0.00043378,120]
[403754835,1769522468388,-301.09,0.00043378,120]
[403754836,1769522468475,-338.33,0.00043378,30]
[403754837,1769522468556,-76521.47471931,0.00043378,75]
[403754838,1769522468636,-549.14444978,0.00043378,120]
[403754839,1769522468728,-13206.34,0.00043378,30]
[403754840,1769522468815,-500.0,0.00043378,120]
[403754841,1769522468904,-500.0,0.00043378,120]
[403754842,1769522468991,-500.0,0.00043378,120]
[403754843,1769522469077,-500.0,0.00043378,120]
[403754844,1769522469166,-500.0,0.00043378,120]
[403754845,1769522469253,-500.0,0.00043378,120]
[403754846,1769522469342,-231.33655698,0.00043378,120]
[403754847,1769522469431,-228.69657264,0.00043378,120]
[403754848,1769522469521,-228.69657264,0.00043378,120]
[403754849,1769522469608,-228.69657264,0.00043378,120]
[403754850,1769522469698,-500.0,0.00043378,120]
[403754851,1769522469787,-500.0,0.00043378,120]
[403754852,1769522469876,-500.0,0.00043378,120]
[403754853,1769522469963,-500.0,0.00043378,120]
[403754854,1769522470048,-500.0,0.00043378,120]
[403754855,1769522470132,-500.0,0.00043378,120]
[403754856,1769522470215,-291.19811728,0.00043378,120]
[403754857,1769522470297,-500.0,0.00043378,120]
[403754858,1769522470380,-500.0,0.00043378,120]
[403754859,1769522470470,-500.0,0.00043378,120]
[403754860,1769522470558,-500.0,0.00043378,120]
[403754861,1769522470646,-500.0,0.00043378,120]
[403754862,1769522470732,-515.2490426,0.00043378,120]
[403754863,1769522470822,-5100.0,0.00043378,37]
[403754864,1769522470910,-165.58223253,0.00043378,30]
[403754865,1769522470996,-500.0,0.00043378,120]
[403754866,1769522471078,-510.6101367,0.00043378,120]
[403754867,1769522471166,-500.0,0.00043378,120]
[403754868,1769522471252,-500.0,0.00043378,120]
[403754869,1769522471339,-500.0,0.00043378,120]
[403754870,1769522471425,-500.0,0.00043378,120]
[403754871,1769522471510,-500.0,0.00043378,120]
[403754872,1769522471595,-500.0,0.00043378,120]
[403754873,1769522471681,-500.0,0.00043378,120]
[403754874,1769522471769,-500.0,0.00043378,120]
[403754875,1769522471855,-500.0,0.00043378,120]
[403754876,1769522471942,-500.0,0.00043378,120]
[403754877,1769522472032,-500.0,0.00043378,120]
[403754878,1769522472119,-500.0,0.00043378,120]
[403754879,1769522472207,-500.0,0.00043378,120]
[403754880,1769522472293,-250.0,0.00043378,120]
[403754881,1769522472378,-512.61057884,0.00043378,120]
[403754882,1769522472463,-46585.51,0.00043378,120]
[403754883,1769522472549,-484.83771852,0.00043378,120]
[403754884,1769522472628,-531.97940647,0.00043378,120]
[403754885,1769522472707,-508.29009005,0.00043378,120]
[403754886,1769522472787,-505.25126698,0.00043378,120]
[403754887,1769522472870,-509.61894598,0.00043378,120]
[403754888,1769522472956,-506.31449671,0.00043378,120]
[403754889,1769522473039,-503.62667357,0.00043378,120]
[403754890,1769522473122,-511.31640071,0.00043378,120]
[403754891,1769522473204,-557.38498781,0.00043378,120]
[403754892,1769522473286,-511.78712219,0.00043378,120]
[403754893,1769522473367,-547.16816815,0.00043378,120]
[403754894,1769522473451,-525.88366834,0.00043378,120]
[403754895,1769522473533,-500.0,0.00043378,120]
[403754896,1769522473616,-540.07222489,0.00043378,120]
[403754897,1769522473699,-551.7509073,0.00043378,120]
[403754898,1769522473781,-526.28617501,0.00043378,120]
[403754899,1769522473865,-569.03303156,0.00043378,120]
[403754900,1769522473951,-510.58108528,0.00043378,120]
[403754901,1769522474036,-500.0,0.00043378,120]
[403754902,1769522474118,-181.71498142,0.00043378,120]
[403754903,1769522474198,-284.43256009,0.00043378,120]
[403754904,1769522474280,-403.95898255,0.00043378,120]
[403754905,1769522474362,-507.14114852,0.00043378,120]
[403754906,1769522474786,-536.59936568,0.00043378,120]
[403754907,1769522474879,-502.87093129,0.00043378,120]
[403754908,1769522474965,-562.6013842,0.00043378,120]
[403754909,1769522475046,-512.24640557,0.00043378,120]
[403754910,1769522475129,-500.0,0.00043378,120]
[403754911,1769522475213,-530.23748492,0.00043378,120]
[403754912,1769522475295,-647.72381118,0.00043378,120]
[403754913,1769522475374,-511.20373353,0.00043378,120]
[403754914,1769522475455,-506.95083749,0.00043378,120]
[403754915,1769522475537,-506.16583693,0.00043378,120]
[403754916,1769522475618,-599.69511795,0.00043378,120]
[403754917,1769522475704,-524.90349918,0.00043378,120]
[403754918,1769522475789,-525.25911743,0.00043378,120]
[403754919,1769522475872,-550.69229169,0.00043378,120]
[403754920,1769522475959,-629.36312326,0.00043378,120]
[403754921,1769522476040,-506.04963768,0.00043378,120]
[403754922,1769522476124,-541.66138947,0.00043378,120]
[403754923,1769522476200,-528.53341638,0.00043378,120]
[403754924,1769522476285,-532.40682334,0.00043378,120]
[403754925,1769522476367,-500.0,0.00043378,120]
[403754926,1769522476450,-258.58197519,0.00043378,120]
[403754927,1769522476533,-347.37743991,0.00043378,120]
[403754928,1769522476617,-529.71047035,0.00043378,120]
[403754929,1769522476701,-561.20121965,0.00043378,120]
[403754930,1769522476786,-607.99774757,0.00043378,120]
[403754931,1769522476868,-537.1774205,0.00043378,120]
[403754932,1769522476957,-509.31229271,0.00043378,120]
[403754933,1769522477038,-526.57305243,0.00043378,120]
[403754934,1769522477120,-500.0,0.00043378,120]
[403754935,1769522477201,-379.02833808,0.00043378,120]
[403754936,1769522477282,-500.0,0.00043378,120]
[403754937,1769522477366,-500.0,0.00043378,120]
[403754938,1769522477450,-245.68262908,0.00043378,120]
[403754939,1769522477530,-517.28868905,0.00043378,120]
[403754940,1769522477609,-511.78118425,0.00043378,120]
[403754941,1769522477689,-605.66589569,0.00043378,120]
[403754942,1769522477769,-586.14585997,0.00043378,120]
[403754943,1769522477852,-513.05464789,0.00043378,120]
[403754944,1769522477934,-501.80050434,0.00043378,120]
[403754945,1769522478019,-394.2059049,0.00043378,120]
[403754946,1769522478102,-511.46154376,0.00043378,120]
[403754947,1769522478191,-505.49293029,0.00043378,120]
[403754948,1769522478272,-517.63003609,0.00043378,120]
[403754949,1769522478353,-574.79532609,0.00043378,120]
[403754950,1769522478439,-509.47141694,0.00043378,120]
[403754951,1769522478530,-505.5628958,0.00043378,120]
[403754952,1769522478610,-506.80686232,0.00043378,120]
[403754953,1769522478692,-519.6878842,0.00043378,120]
[403754954,1769522478772,-508.5835745,0.00043378,120]
[403754955,1769522478855,-517.82214306,0.00043378,120]
[403754956,1769522478936,-512.55848344,0.00043378,120]
[403754957,1769522479016,-511.65002074,0.00043378,120]
[403754958,1769522479097,-303.10922006,0.00043378,120]
[403754959,1769522479180,-510.89881684,0.00043378,120]
[403754960,1769522479262,-497.58972138,0.00043378,120]
[403754961,1769522479343,-508.34679185,0.00043378,120]
[403754962,1769522479425,-510.07980043,0.00043378,120]
[403754963,1769522479504,-506.36912791,0.00043378,120]
[403754964,1769522479582,-467.2868068,0.00043378,120]
[403754965,1769522479662,-507.84549695,0.00043378,120]
[403754966,1769522479742,-510.22696098,0.00043378,120]
[403754967,1769522479824,-520.44482494,0.00043378,120]
[403754968,1769522479907,-509.90903762,0.00043378,120]
[403754969,1769522479992,-517.12013762,0.00043378,120]
[403754970,1769522480072,-511.31826872,0.00043378,120]
[403754971,1769522480152,-501.57586332,0.00043378,120]
[403754972,1769522480234,-519.81003052,0.00043378,120]
[403754973,1769522480314,-506.39799915,0.00043378,120]
[403754974,1769522480396,-517.0116836,0.00043378,120]
[403754975,1769522480481,-342.92972784,0.00043378,120]
[403754976,1769522480560,-503.21477952,0.00043378,120]
[403754977,1769522480642,-404.84575587,0.00043378,120]
[403754978,1769522480724,-511.07925962,0.00043378,120]
[403754979,1769522480807,-530.37284301,0.00043378,120]
[403754980,1769522480891,-536.71049602,0.00043378,120]
[403754981,1769522480975,-516.34441939,0.00043378,120]
[403754982,1769522481056,-518.26206919,0.00043378,120]
[403754983,1769522481137,-507.2936259,0.00043378,120]
[403754984,1769522481223,-618.91174432,0.00043378,120]
[403754985,1769522481305,-505.04767961,0.00043378,120]
[403754986,1769522481387,-507.15451579,0.00043378,120]
[403754987,1769522481469,-501.33057467,0.00043378,120]
[403754988,1769522481549,-501.82524628,0.00043378,120]
[403754989,1769522481628,-514.49132444,0.00043378,120]
[403754990,1769522481712,-517.02203266,0.00043378,120]
[403754991,1769522481792,-500.0,0.00043378,120]
[403754992,1769522481879,-572.77381917,0.00043378,120]
[403754993,1769522481966,-522.88782488,0.00043378,120]
[403754994,1769522482049,-150.255387,0.00043378,120]
[403754995,1769522482130,-514.1872478,0.00043378,120]
[403754996,1769522482213,-508.4117356,0.00043378,120]
[403754997,1769522482293,-503.05192167,0.00043378,120]
[403754998,1769522482372,-505.67379351,0.00043378,120]
[403754999,1769522482450,-510.73547355,0.00043378,120]
[403755000,1769522482528,-512.92016887,0.00043378,120]
[403755001,1769522482621,-503.07822116,0.00043378,120]
[403755002,1769522483113,-510.01026276,0.00043378,120]
[403755003,1769522483197,-512.77902743,0.00043378,120]
[403755004,1769522483283,-530.17601465,0.00043378,120]
[403755005,1769522483369,-508.33042699,0.00043378,120]
[403755006,1769522483452,-504.82287451,0.00043378,120]
[403755007,1769522483535,-502.98253889,0.00043378,120]
[403755008,1769522483615,-506.02420625,0.00043378,120]
[403755009,1769522483704,-414.29702956,0.00043378,120]
[403755010,1769522483788,-510.87228918,0.00043378,120]
[403755011,1769522483871,-517.54104384,0.00043378,120]
[403755012,1769522483960,-514.46642585,0.00043378,120]
[403755013,1769522484044,-507.14679983,0.00043378,120]
[403755014,1769522484130,-503.73759413,0.00043378,120]
[403755015,1769522484212,-502.95171235,0.00043378,120]
[403755016,1769522484293,-503.4460883,0.00043378,120]
[403755017,1769522484373,-508.80350917,0.00043378,120]
[403755018,1769522484455,-524.56238385,0.00043378,120]
[403755019,1769522484536,-507.27293614,0.00043378,120]
[403755020,1769522484615,-512.21583308,0.00043378,120]
[403755021,1769522484695,-999.999999,0.00043378,120]
[403755022,1769522484775,-2374.97,0.00043378,120]
[403755023,1769522484855,-2374.97,0.00043378,120]
[403755024,1769522484936,-2374.97,0.00043378,120]
[403755025,1769522485023,-2374.97,0.00043378,120]
[403755026,1769522485106,-2374.97,0.00043378,120]
[403755027,1769522485188,-2374.97,0.00043378,120]
[403755028,1769522485270,-2374.97,0.00043378,120]
[403755029,1769522485353,-2374.97,0.00043378,120]
[403755030,1769522485440,-2374.97,0.00043378,120]
[403755031,1769522485524,-2374.97,0.00043378,120]
[403755032,1769522485606,-2374.97,0.00043378,120]
[403755033,1769522485690,-2374.97,0.00043378,120]
[403755034,1769522485771,-2374.97,0.00043378,120]
[403755035,1769522485854,-2374.97,0.00043378,120]
[403755036,1769522485936,-2374.97,0.00043378,120]
[403755037,1769522486020,-2374.97,0.00043378,120]
[403755038,1769522486105,-2374.97,0.00043378,120]
[403755039,1769522486189,-2374.97,0.00043378,120]
[403755040,1769522486273,-2374.97,0.00043378,120]
[403755041,1769522486356,-2374.97,0.00043378,120]
[403755042,1769522486436,-2374.97,0.00043378,120]
[403755043,1769522486515,-2374.97,0.00043378,120]
[403755044,1769522486594,-2374.97,0.00043378,120]
[403755045,1769522486677,-2375.05899171,0.00043378,120]
[403755046,1769522486759,-500.0,0.00043378,120]
[403755047,1769522486842,-617.14603227,0.00043378,120]
[403755048,1769522486927,-502.98749082,0.00043378,120]
[403755049,1769522487012,-191.41025537,0.00043378,120]
[403755050,1769522487098,-500.0,0.00043378,120]
[403755051,1769522487182,-500.0,0.00043378,120]
[403755052,1769522487267,-500.0,0.00043378,120]
[403755053,1769522487354,-636.55986656,0.00043378,120]
[403755054,1769522487439,-500.90879984,0.00043378,120]
[403755055,1769522487522,-500.0,0.00043378,120]
[403755056,1769522487601,-500.0,0.00043378,120]
[403755057,1769522487684,-500.0,0.00043378,120]
[403755058,1769522487768,-612.74276606,0.00043378,120]
[403755059,1769522487858,-500.0,0.00043378,120]
[403755060,1769522487943,-500.0,0.00043378,120]
[403755061,1769522488027,-290.21986154,0.00043378,120]
[403755062,1769522488111,-500.0,0.00043378,120]
[403755063,1769522488193,-500.0,0.00043378,120]
[403755064,1769522488273,-500.0,0.00043378,120]
[403755065,1769522488352,-500.0,0.00043378,120]
[403755066,1769522488431,-500.0,0.00043378,120]
[403755067,1769522488513,-500.0,0.00043378,120]
[403755068,1769522488594,-500.0,0.00043378,120]
[403755069,1769522488673,-500.0,0.00043378,120]
[403755070,1769522488754,-500.0,0.00043378,120]
[403755071,1769522488836,-500.0,0.00043378,120]
[403755072,1769522488921,-491.40208819,0.00043378,120]
[403755073,1769522489004,-502.17371855,0.00043378,120]
[403755074,1769522489088,-500.0,0.00043378,120]
[403755075,1769522489171,-500.0,0.00043378,120]
[403755076,1769522489254,-500.0,0.00043378,120]
[403755077,1769522489336,-500.0,0.00043378,120]
[403755078,1769522489418,-500.0,0.00043378,120]
[403755079,1769522489497,-500.0,0.00043378,120]
[403755080,1769522489576,-500.0,0.00043378,120]
[403755081,1769522489653,-500.0,0.00043378,120]
[403755082,1769522489729,-500.0,0.00043378,120]
[403755083,1769522489810,-500.0,0.00043378,120]
[403755084,1769522489891,-500.0,0.00043378,120]
[403755085,1769522489970,-500.0,0.00043378,120]
[403755086,1769522490049,-500.0,0.00043378,120]
[403755087,1769522490127,-500.0,0.00043378,120]
[403755088,1769522490209,-500.0,0.00043378,120]
[403755089,1769522490288,-500.0,0.00043378,120]
[403755090,1769522490366,-500.0,0.00043378,120]
[403755091,1769522490446,-500.0,0.00043378,120]
[403755092,1769522490525,-500.0,0.00043378,120]
[403755093,1769522490601,-525.29556309,0.00043378,120]
[403755094,1769522490674,-500.0,0.00043378,120]
[403755095,1769522490754,-501.02809999,0.00043378,120]
[403755096,1769522490836,-534.08279136,0.00043378,120]
[403755097,1769522491300,-507.40207329,0.00043378,120]
[403755098,1769522491381,-514.97808309,0.00043378,120]
[403755099,1769522491462,-500.0,0.00043378,120]
[403755100,1769522491543,-519.71901438,0.00043378,120]
[403755101,1769522491622,-508.69083446,0.00043378,120]
[403755102,1769522491711,-500.0,0.00043378,120]
[403755103,1769522491798,-509.06215673,0.00043378,120]
[403755104,1769522491885,-638.35446037,0.00043378,120]
[403755105,1769522491971,-508.65410125,0.00043378,120]
[403755106,1769522492053,-505.0132448,0.00043378,120]
[403755107,1769522492133,-544.63369733,0.00043378,120]
[403755108,1769522492210,-504.03656455,0.00043378,120]
[403755109,1769522492291,-518.06268539,0.00043378,120]
[403755110,1769522492369,-505.97692728,0.00043378,120]
[403755111,1769522492447,-521.80839535,0.00043378,120]
[403755112,1769522492523,-505.03263886,0.00043378,120]
[403755113,1769522492599,-517.73581483,0.00043378,120]
[403755114,1769522492672,-521.39692349,0.00043378,120]
[403755115,1769522492745,-504.69758735,0.00043378,120]
[403755116,1769522492821,-506.35680462,0.00043378,120]
[403755117,1769522492906,-574.2146549,0.00043378,120]
[403755118,1769522492990,-511.1310836,0.00043378,120]
[403755119,1769522493074,-518.85163086,0.00043378,120]
[403755120,1769522493158,-512.39616907,0.00043378,120]
[403755121,1769522493240,-518.83603545,0.00043378,120]
[403755122,1769522493322,-502.63281822,0.00043378,120]
[403755123,1769522493404,-500.0,0.00043378,120]
[403755124,1769522493486,-174.44779601,0.00043378,120]
[403755125,1769522493568,-511.10173684,0.00043378,120]
[403755126,1769522493650,-500.0,0.00043378,120]
[403755127,1769522493733,-500.0,0.00043378,120]
[403755128,1769522493816,-510.00970933,0.00043378,120]
[403755129,1769522493902,-500.0,0.00043378,120]
[403755130,1769522493986,-500.0,0.00043378,120]
[403755131,1769522494074,-500.0,0.00043378,120]
[403755132,1769522494159,-542.17820675,0.00043378,120]
[403755133,1769522494240,-632.72,0.00043378,120]
[403755134,1769522494322,-500.0,0.00043378,120]
[403755135,1769522494404,-182.02,0.00043378,120]
[403755136,1769522494483,-528.11233407,0.00043378,120]
[403755137,1769522494564,-558.44,0.00043378,120]
[403755138,1769522494640,-500.0,0.00043378,120]
[403755139,1769522494717,-500.0,0.00043378,120]
[403755140,1769522494796,-500.0,0.00043378,120]
[403755141,1769522494881,-500.0,0.00043378,120]
[403755142,1769522494967,-500.0,0.00043378,120]
[403755143,1769522495051,-500.0,0.00043378,120]
[403755144,1769522495136,-500.0,0.00043378,120]
[403755145,1769522495219,-599.48,0.00043378,120]
[403755146,1769522495299,-500.0,0.00043378,120]
[403755147,1769522495381,-500.73878323,0.00043378,120]
[403755148,1769522495465,-500.0,0.00043378,120]
[403755149,1769522495545,-502.10143211,0.00043378,120]
[403755150,1769522495623,-500.0,0.00043378,120]
[403755151,1769522495704,-502.91036877,0.00043378,120]
[403755152,1769522495783,-537.34985818,0.00043378,120]
[403755153,1769522495861,-501.71526099,0.00043378,120]
[403755154,1769522495941,-560.18350076,0.00043378,120]
[403755155,1769522496024,-541.69756522,0.00043378,120]
[403755156,1769522496106,-500.0,0.00043378,120]
[403755157,1769522496185,-502.11071509,0.00043378,120]
[403755158,1769522496264,-591.17586507,0.00043378,120]
[403755159,1769522496344,-503.91675361,0.00043378,120]
[403755160,1769522496425,-501.68827867,0.00043378,120]
[403755161,1769522496507,-500.0,0.00043378,120]
[403755162,1769522496587,-200.18,0.00043378,120]
[403755163,1769522496665,-500.0,0.00043378,120]
[403755164,1769522496758,-500.0,0.00043378,120]
[403755165,1769522496841,-500.0,0.00043378,120]
[403755166,1769522496930,-500.0,0.00043378,120]
[403755167,1769522497019,-507.76273304,0.00043378,120]
[403755168,1769522497099,-520.45,0.00043378,120]
[403755169,1769522497181,-500.0,0.00043378,120]
[403755170,1769522497261,-500.0,0.00043378,120]
[403755171,1769522497342,-500.0,0.00043378,120]
[403755172,1769522497427,-506.27730947,0.00043378,120]
[403755173,1769522497509,-500.0,0.00043378,120]
[403755174,1769522497589,-500.0,0.00043378,120]
[403755175,1769522497666,-500.0,0.00043378,120]
[403755176,1769522497744,-503.4691624,0.00043378,30]
[403755177,1769522497824,-513.02898633,0.00043378,120]
[403755178,1769522497906,-510.54250217,0.00043378,120]
[403755179,1769522497989,-500.0,0.00043378,120]
[403755180,1769522498074,-309.7,0.00043378,120]
[403755181,1769522498158,-602.96195749,0.00043378,120]
[403755182,1769522498242,-528.57146531,0.00043378,120]
[403755183,1769522498325,-515.78448991,0.00043378,120]
[403755185,1769522498406,-500.0,0.00043378,120]
[403755186,1769522498486,-500.0,0.00043378,120]
[403755187,1769522498562,-156.14,0.00043378,120]
[403755188,1769522498637,-512.81572058,0.00043378,120]
[403755189,1769522498708,-497.27782416,0.00043378,120]
[403755190,1769522498779,-500.0,0.00043378,120]
[403755191,1769522498850,-508.865942,0.00043378,120]
[403755192,1769522498927,-502.38586326,0.00043378,120]
[403755193,1769522499311,-500.0,0.00043378,120]
[403755194,1769522499391,-500.0,0.00043378,120]
[403755195,1769522499468,-500.0,0.00043378,30]
[403755196,1769522499545,-502.55485023,0.00043378,120]
[403755197,1769522499622,-526.95149961,0.00043378,120]
[403755198,1769522499699,-501.72054799,0.00043378,120]
[403755199,1769522499777,-504.2893626,0.00043378,120]
[403755200,1769522499854,-501.63445709,0.00043378,120]
[403755201,1769522499933,-506.1038677,0.00043378,120]
[403755202,1769522500012,-499.6189112,0.00043378,120]
[403755203,1769522500091,-507.69003238,0.00043378,120]
[403755204,1769522500165,-509.48341334,0.00043378,120]
[403755205,1769522500239,-506.88420229,0.00043378,120]
[403755206,1769522500310,-498.97451268,0.00043378,120]
[403755207,1769522500386,-510.09872568,0.00043378,120]
[403755208,1769522500467,-515.56916854,0.00043378,120]
[403755209,1769522500545,-515.81117145,0.00043378,120]
[403755210,1769522500619,-522.02995774,0.00043378,120]
[403755211,1769522500690,-630.39659825,0.00043378,120]
[403755212,1769522500763,-500.0,0.00043378,120]
[403755213,1769522500839,-517.17535612,0.00043378,120]
[403755214,1769522500925,-516.98994011,0.00043378,120]
[403755215,1769522501008,-500.0,0.00043378,120]
[403755216,1769522501094,-500.0,0.00043378,120]
[403755217,1769522501177,-510.6654506,0.00043378,120]
[403755218,1769522501257,-546.79004356,0.00043378,120]
[403755219,1769522501338,-525.34941184,0.00043378,120]
[403755220,1769522501417,-499.82219612,0.00043378,120]
[403755221,1769522501497,-500.0,0.00043378,120]
[403755222,1769522501576,-1071.0,0.00043378,120]
[403755223,1769522501657,-408.2690974,0.00043378,120]
[403755224,1769522501734,-500.0,0.00043378,120]
[403755225,1769522501813,-517.25818552,0.00043378,120]
[403755226,1769522501896,-538.77461562,0.00043378,120]
[403755227,1769522501983,-323.77762788,0.00043378,120]
[403755228,1769522502078,-557.97903094,0.00043378,120]
[403755229,1769522502165,-506.88550886,0.00043378,120]
[403755230,1769522502250,-531.93853684,0.00043378,120]
[403755231,1769522502332,-500.0,0.00043378,120]
[403755232,1769522502409,-515.66218902,0.00043378,120]
[403755233,1769522502487,-500.0,0.00043378,120]
[403755234,1769522502563,-527.80305608,0.00043378,120]
[403755235,1769522502636,-500.0,0.00043378,120]
[403755236,1769522502709,-377.80995011,0.00043378,120]
[403755237,1769522502788,-517.43156098,0.00043378,120]
[403755238,1769522502871,-530.99670923,0.00043378,120]
[403755239,1769522502961,-548.07969913,0.00043378,120]
[403755240,1769522503047,-514.82357679,0.00043378,120]
[403755241,1769522503130,-545.713442,0.00043378,120]
[403755242,1769522503216,-468.41217857,0.00043378,120]
[403755243,1769522503299,-518.48360435,0.00043378,120]
[403755244,1769522503380,-450.0,0.00043378,120]
[403755245,1769522503458,-569.37623764,0.00043378,120]
[403755246,1769522503539,-516.07693438,0.00043378,120]
[403755247,1769522503624,-470.13762761,0.00043378,120]
[403755248,1769522503706,-521.73744555,0.00043378,120]
[403755249,1769522503787,-533.90531896,0.00043378,120]
[403755250,1769522503871,-536.04357788,0.00043378,120]
[403755251,1769522503955,-532.72295875,0.00043378,120]
[403755252,1769522504038,-547.23148951,0.00043378,120]
[403755253,1769522504118,-548.66759632,0.00043378,120]
[403755254,1769522504201,-544.3940341,0.00043378,120]
[403755255,1769522504284,-532.59330022,0.00043378,120]
[403755256,1769522504367,-552.51108742,0.00043378,120]
[403755257,1769522504446,-625.94642708,0.00043378,120]
[403755258,1769522504522,-507.28373616,0.00043378,120]
[403755259,1769522504602,-512.99889859,0.00043378,120]
[403755260,1769522504681,-535.10439491,0.00043378,120]
[403755261,1769522504760,-259.88519419,0.00043378,120]
[403755262,1769522504840,-518.39104538,0.00043378,30]
[403755263,1769522504924,-534.62184589,0.00043378,120]
[403755264,1769522505011,-574.19716722,0.00043378,120]
[403755265,1769522505096,-541.84668545,0.00043378,120]
[403755266,1769522505180,-506.93342025,0.00043378,120]
[403755267,1769522505262,-512.25174598,0.00043378,120]
[403755268,1769522505345,-531.9963915,0.00043378,120]
[403755269,1769522505427,-513.4927388,0.00043378,120]
[403755270,1769522505508,-534.28447951,0.00043378,120]
[403755271,1769522505587,-500.0,0.00043378,120]
[403755272,1769522505667,-386.26582908,0.00043378,120]
[403755273,1769522505746,-500.0,0.00043378,120]
[403755274,1769522505825,-235.47441767,0.00043378,120]
[403755275,1769522505902,-416.04358287,0.00043378,120]
[403755276,1769522505978,-553.53289238,0.00043378,120]
[403755277,1769522506059,-611.05588081,0.00043378,120]
[403755278,1769522506140,-516.72731786,0.00043378,120]
[403755279,1769522506221,-640.47745461,0.00043378,120]